bitfinex-derivatives/quotes_BTCF0:USTF0_20241015
["timestamp","ask_amount","ask_price","bid_price","bid_amount"]
[1729011751943,0.074554,67076.0,67075.0,0.074554]
[1729011752335,0.42813461,67076.0,67062.0,0.1268]
[1729011752542,0.5241163,67079.0,67057.0,0.00223659]
[1729011752543,0.13285461,67069.0,67066.0,0.074564]
[1729011752840,0.074557,67073.0,67072.0,0.074554]
[1729011753139,0.102516,67073.0,67072.0,0.26]
[1729011753445,0.3608,67079.0,67078.0,0.074551]
[1729011753637,0.04796014,67079.0,67078.0,0.074551]
[1729011753836,0.04896014,67079.0,67078.0,0.074551]
[1729011754544,0.04896014,67079.0,67078.0,0.088551]
[1729011754735,0.001,67079.0,67078.0,0.088551]
[1729011755439,0.001,67079.0,67078.0,1.135791]
[1729011755739,0.10374013,67079.0,67078.0,1.135791]
[1729011756143,0.04954183,67079.0,67078.0,1.137791]
[1729011756345,0.002,67079.0,67078.0,1.137791]
[1729011757147,0.001,67079.0,67078.0,1.135791]
[1729011757348,0.13285461,67082.0,67081.0,0.074547]
[1729011757544,0.13285461,67082.0,67081.0,0.334547]
[1729011758441,0.13285461,67082.0,67081.0,0.074547]
[1729011758647,0.20740061,67082.0,67081.0,0.074547]
[1729011759247,0.13385461,67082.0,67081.0,0.088547]
[1729011759656,0.49465461,67082.0,67081.0,0.102547]
[1729011759848,0.13385461,67082.0,67081.0,0.102547]
[1729011760549,0.13385461,67082.0,67081.0,0.362547]
[1729011762049,0.001,67082.0,67081.0,0.362547]
[1729011766938,0.001,67082.0,67081.0,0.028]
[1729011767144,0.335546,67082.0,67081.0,0.028]
[1729011767550,0.580646,67082.0,67081.0,0.028]
[1729011767861,1.627846,67082.0,67081.0,0.028]
[1729011768045,1.627846,67082.0,67064.0,0.36303624]
[1729011768046,0.074565,67066.0,67065.0,0.074563]
[1729011768242,0.074565,67066.0,67064.0,0.00223624]
[1729011768243,0.074565,67065.0,67064.0,0.00223624]
[1729011768550,0.200965,67065.0,67064.0,0.00223624]
[1729011768742,0.324965,67065.0,67064.0,0.00223624]
[1729011769341,0.325965,67065.0,67064.0,0.00323624]
[1729011769943,0.337965,67065.0,67064.0,0.00423624]
[1729011770347,0.925965,67065.0,67064.0,0.00323624]
[1729011770647,0.925965,67065.0,67051.0,0.07458]
[1729011770648,0.074568,67063.0,67051.0,0.07458]
[1729011770859,0.6208,67052.0,67051.0,0.07458]
[1729011772353,0.3608,67052.0,67051.0,0.07458]
[1729011772756,0.32256854,67052.0,67051.0,0.16356857]
[1729011773442,0.33656854,67052.0,67051.0,0.23646323]
[1729011773948,0.32256854,67052.0,67051.0,0.23646323]
[1729011774150,0.028,67052.0,67051.0,0.23650193]
[1729011774548,0.028,67052.0,67051.0,0.07558]
[1729011775157,0.014,67052.0,67051.0,0.07458]
[1729011775359,0.288,67052.0,67051.0,0.07558]
[1729011775659,0.36258,67052.0,67051.0,0.07558]
[1729011776048,0.36258,67052.0,67051.0,0.001]
[1729011776049,0.288,67052.0,67051.0,0.001]
[1729011776256,0.36258,67052.0,67051.0,0.001]
[1729011776652,0.34858,67052.0,67051.0,0.001]
[1729011776848,0.074584,67048.0,67047.0,0.05833006]
[1729011777052,0.6208,67048.0,67047.0,0.05830239]
[1729011777248,0.695384,67048.0,67047.0,0.05830239]
[1729011777556,0.6208,67048.0,67047.0,0.074585]
[1729011777960,0.6348,67048.0,67047.0,0.074585]
[1729011778257,0.709384,67048.0,67047.0,0.074585]
[1729011778458,0.014,67048.0,67047.0,0.074585]
[1729011778754,0.3748,67052.0,67051.0,0.074581]
[1729011778755,0.08858,67052.0,67051.0,0.074581]
[1729011779059,0.69538,67052.0,67051.0,0.074581]
[1729011779450,0.69538,67052.0,67051.0,0.13282687]
[1729011779651,0.69538,67052.0,67051.0,0.074581]
[1729011780153,0.34858,67052.0,67051.0,0.13382687]
[1729011780354,0.70938,67052.0,67051.0,0.075581]
[1729011780558,0.34858,67052.0,67051.0,0.075581]
[1729011780753,0.36258,67052.0,67051.0,0.075581]
[1729011780953,0.028,67052.0,67051.0,0.075581]
[1729011781360,0.028,67052.0,67051.0,0.13382687]
[1729011782259,0.028,67052.0,67051.0,0.05924587]
[1729011782459,1.0754,67052.0,67043.0,0.0582367]
[1729011782646,0.074594,67039.0,67038.0,0.0582367]
[1729011782854,0.074594,67039.0,67034.0,0.1328357]
[1729011783067,0.695399,67035.0,67034.0,0.074599]
[1729011783365,0.2447,67038.0,67034.0,0.074599]
[1729011783675,0.00223786,67055.0,67037.0,0.26]
[1729011783958,0.00223786,67055.0,67051.0,0.244581]
[1729011784161,0.00223786,67055.0,67051.0,0.605381]
[1729011784356,0.3608,67065.0,67064.0,0.074566]
[1729011784554,0.3608,67065.0,67064.0,0.244566]
[1729011784748,0.3608,67065.0,67064.0,0.3027042]
[1729011785062,0.3608,67065.0,67064.0,0.074566]
[1729011785249,0.3608,67065.0,67063.0,0.05813133]
[1729011785455,0.17,67064.0,67060.0,0.05813133]
[1729011785658,0.24457,67061.0,67060.0,0.074571]
[1729011785964,0.24457,67061.0,67055.0,0.1216]
[1729011785965,0.074572,67059.0,67055.0,0.1216]
[1729011786153,0.3608,67058.0,67057.0,0.074574]
[1729011786349,0.5308,67058.0,67057.0,0.074574]
[1729011786961,0.5308,67058.0,67049.0,0.08734049]
[1729011786962,0.7008,67058.0,67050.0,0.07491198]
[1729011787158,0.7008,67058.0,67053.0,0.05818856]
[1729011787159,0.074577,67054.0,67053.0,0.05818856]
[1729011787367,0.244577,67054.0,67053.0,0.074579]
[1729011788163,0.605377,67054.0,67053.0,0.074579]
[1729011788357,0.605377,67054.0,67053.0,0.13276756]
[1729011788563,0.5308,67054.0,67053.0,0.13276756]
[1729011788761,0.5308,67054.0,67053.0,0.075579]
[1729011789056,0.605379,67054.0,67053.0,0.13376756]
[1729011789364,0.245579,67054.0,67053.0,0.13476756]
[1729011789965,0.258579,67054.0,67053.0,0.13376756]
[1729011790464,0.244579,67054.0,67053.0,0.13379412]
[1729011790665,0.244579,67054.0,67053.0,0.075579]
[1729011790666,0.619379,67054.0,67053.0,0.075579]
[1729011790855,0.074591,67042.0,67041.0,0.08734049]
[1729011791055,0.074591,67042.0,67027.0,0.074607]
[1729011791056,0.074595,67038.0,67027.0,0.074607]
[1729011791263,0.17,67028.0,67027.0,0.074607]
[1729011791465,0.17,67028.0,67013.0,0.074623]
[1729011791466,0.074607,67027.0,67019.0,0.02157081]
[1729011791662,0.3608,67029.0,67018.0,0.08957767]
[1729011791663,0.074614,67022.0,67021.0,0.074614]
[1729011791871,0.074616,67019.0,67018.0,0.00223718]
[1729011792164,0.074607,67028.0,67018.0,0.16355118]
[1729011792461,0.17,67019.0,67018.0,0.09833752]
[1729011792765,0.3608,67029.0,67021.0,0.074614]
[1729011792766,0.244613,67022.0,67021.0,0.074614]
[1729011792968,0.609413,67022.0,67021.0,0.001]
[1729011793662,0.074616,67019.0,67018.0,0.00223718]
[1729011793866,0.074616,67019.0,67018.0,0.00323718]
[1729011793867,0.352616,67019.0,67018.0,0.00323718]
[1729011794064,0.352616,67019.0,67018.0,0.07785518]
[1729011794258,0.004,67019.0,67018.0,0.07785518]
[1729011794454,0.078616,67019.0,67018.0,0.00323718]
[1729011794966,0.439416,67019.0,67018.0,0.00323718]
[1729011795175,0.435416,67019.0,67018.0,0.00223718]
[1729011795363,0.074616,67019.0,67018.0,0.07685518]
[1729011795561,0.435416,67019.0,67018.0,0.07685518]
[1729011795769,0.028,67022.0,67021.0,0.074614]
[1729011795968,0.435413,67022.0,67021.0,0.074614]
[1729011796558,0.088616,67019.0,67018.0,0.07785418]
[1729011796758,0.348616,67019.0,67018.0,0.00323718]
[1729011797165,0.334616,67019.0,67018.0,0.00223718]
[1729011797460,0.074632,67007.0,67006.0,0.07463]
[1729011797663,0.334632,67007.0,67006.0,0.16144481]
[1729011798065,0.334632,67007.0,67006.0,0.07463]
[1729011798768,0.074639,66999.0,66998.0,0.00132]
[1729011798965,0.334639,66999.0,66998.0,0.1618037]
[1729011799272,0.26,66999.0,66998.0,0.07464]
[1729011799468,0.26,66999.0,66998.0,0.16192424]
[1729011799669,0.26,66999.0,66998.0,0.07464]
[1729011800264,0.27,66999.0,66998.0,0.07464]
[1729011800667,0.27,66999.0,66998.0,0.07564]
[1729011800668,0.276,66999.0,66998.0,0.07564]
[1729011800872,0.350639,66999.0,66998.0,0.07564]
[1729011801065,0.276,66999.0,66998.0,0.07564]
[1729011802363,0.334613,67022.0,67016.0,0.07462]
[1729011802565,0.36303859,67030.0,67021.0,0.26]
[1729011802773,0.00223859,67030.0,67029.0,0.074605]
[1729011803170,0.3608,67046.0,67029.0,0.074605]
[1729011803373,0.5152,67047.0,67035.0,0.6208]
[1729011803374,0.2552,67047.0,67035.0,0.6208]
[1729011803678,0.3608,67056.0,67045.0,0.26]
[1729011803872,0.00223774,67057.0,67054.0,0.074577]
[1729011803873,0.074576,67055.0,67054.0,0.074577]
[1729011804073,0.00223774,67057.0,67056.0,0.074575]
[1729011805667,0.26,67083.0,67058.0,0.074573]
[1729011805874,0.074552,67077.0,67075.0,0.074554]
[1729011806372,0.3608,67078.0,67068.0,0.3608]
[1729011806582,0.26,67079.0,67064.0,0.26]
[1729011806583,0.074554,67075.0,67064.0,0.26]
[1729011806767,0.26,67074.0,67073.0,0.074555]
[1729011807167,0.02181867,67083.0,67077.0,0.074552]
[1729011807168,0.3608,67078.0,67077.0,0.074552]
[1729011807372,0.3608,67078.0,67077.0,0.334552]
[1729011807569,0.1218,67090.0,67085.0,0.074543]
[1729011807764,0.196337,67090.0,67089.0,0.074539]
[1729011808079,0.074543,67085.0,67078.0,0.26]
[1729011808262,0.074543,67085.0,67084.0,0.074544]
[1729011808467,0.1218,67090.0,67083.0,0.26]
[1729011808663,0.07677303,67091.0,67090.0,0.074537]
[1729011809068,0.00223703,67091.0,67090.0,0.074537]
[1729011810275,0.00223703,67091.0,67090.0,0.334537]
[1729011810483,0.00223703,67091.0,67090.0,0.074537]
[1729011810679,0.07777303,67091.0,67090.0,0.086537]
[1729011811371,0.43857303,67091.0,67090.0,0.012]
[1729011811573,1.48573303,67091.0,67090.0,0.00398864]
[1729011811769,0.074544,67084.0,67083.0,0.014]
[1729011811965,0.074549,67080.0,67079.0,0.074549]
[1729011812184,0.074552,67077.0,67076.0,0.00223607]
[1729011812573,1.121792,67077.0,67076.0,0.00223607]
[1729011812771,1.04724,67077.0,67063.0,0.074567]
[1729011812973,0.334549,67080.0,67058.0,0.074573]
[1729011812974,0.26,67064.0,67058.0,0.074573]
[1729011813173,0.074574,67058.0,67055.0,0.00223703]
[1729011813474,0.074574,67058.0,67056.0,0.074575]
[1729011813776,0.00076,67059.0,67055.0,0.00223703]
[1729011813982,0.074575,67056.0,67055.0,0.00223703]
[1729011814371,1.121975,67056.0,67055.0,0.00223703]
[1729011814975,0.074583,67049.0,67047.0,0.074585]
[1729011815181,0.074581,67051.0,67048.0,0.074584]
[1729011815377,0.3608,67051.0,67043.0,0.3608]
[1729011815679,0.3608,67050.0,67044.0,0.074589]
[1729011815883,0.074584,67049.0,67046.0,0.074586]
[1729011816080,0.074584,67049.0,67048.0,0.074584]
[1729011816381,0.074584,67049.0,67043.0,0.3608]
[1729011816382,0.3608,67050.0,67043.0,0.3608]
[1729011816687,0.3608,67050.0,67049.0,0.074583]
[1729011816993,0.435382,67050.0,67049.0,0.074583]
[1729011818789,0.449382,67050.0,67049.0,0.074583]
[1729011819176,0.6318,67050.0,67049.0,0.001]
[1729011819371,0.6318,67050.0,67039.0,0.074594]
[1729011819372,0.074594,67040.0,67039.0,0.074594]
[1729011819694,0.074596,67037.0,67036.0,0.074597]
[1729011820388,0.26,67040.0,67033.0,0.00223743]
[1729011820588,0.334593,67040.0,67034.0,0.0746]
[1729011820791,0.0746,67034.0,67033.0,0.00223743]
[1729011821286,0.074602,67032.0,67018.0,0.074617]
[1729011821476,0.26,67019.0,67018.0,0.074617]
[1729011821876,0.074616,67020.0,67019.0,0.074616]
[1729011822083,0.6208,67023.0,67011.0,0.3608]
[1729011822084,0.62164,67023.0,67011.0,0.3608]
[1729011822287,0.26,67018.0,67017.0,0.074619]
[1729011823586,0.273,67018.0,67017.0,0.075619]
[1729011823789,0.287,67018.0,67017.0,0.075619]
[1729011823984,0.027,67018.0,67017.0,0.075619]
[1729011824178,0.101618,67018.0,67017.0,0.075619]
[1729011824379,0.027,67018.0,67017.0,0.075619]
[1729011825390,0.014,67018.0,67017.0,0.074619]
[1729011825582,0.012,67018.0,67017.0,0.075619]
[1729011825791,0.026,67018.0,67017.0,0.075619]
[1729011826297,0.3608,67022.0,67021.0,0.074614]
[1729011826795,0.435413,67022.0,67021.0,0.074614]
[1729011826986,0.074617,67019.0,67017.0,0.001]
[1729011827197,0.074617,67019.0,67018.0,0.074617]
[1729011828789,0.074618,67018.0,67017.0,0.001]
[1729011828990,0.074618,67018.0,67002.0,0.074634]
[1729011828991,0.074632,67005.0,67002.0,0.074634]
[1729011829188,0.334632,67005.0,67004.0,0.07687159]
[1729011829788,0.334632,67005.0,67004.0,0.00223859]
[1729011830193,0.334632,67005.0,67004.0,0.07687159]
[1729011830391,0.334632,67005.0,67004.0,0.00223859]
[1729011830591,0.695432,67005.0,67004.0,0.00223859]
[1729011830791,0.695432,67005.0,67004.0,0.07687159]
[1729011831394,0.709432,67005.0,67004.0,0.00223859]
[1729011831895,0.720432,67005.0,67004.0,0.00323859]
[1729011832300,0.460432,67005.0,67004.0,0.001]
[1729011832692,1.508152,67005.0,67004.0,0.001]
[1729011834000,0.460432,67005.0,67004.0,0.001]
[1729011834198,0.460432,67005.0,67001.0,0.074636]
[1729011834199,1.43352,67005.0,66999.0,0.074639]
[1729011834403,0.074645,66996.0,66995.0,0.074643]
[1729011834607,0.26,66996.0,66995.0,0.074643]
[1729011834996,0.3608,66998.0,66997.0,0.074641]
[1729011835502,0.26,66999.0,66990.0,0.02424916]
[1729011835503,0.6208,66999.0,66998.0,0.07464]
[1729011836100,0.26,66999.0,66998.0,0.07464]
[1729011836503,0.088643,66996.0,66995.0,0.07464]
[1729011836803,0.348643,66996.0,66995.0,0.07464]
[1729011837992,0.074646,66993.0,66992.0,0.074645]
[1729011838200,0.334646,66993.0,66992.0,0.074645]
[1729011838395,0.695446,66993.0,66992.0,0.074645]
[1729011838597,0.6208,66993.0,66990.0,0.00223919]
[1729011838799,0.074648,66991.0,66990.0,0.00223919]
[1729011839001,0.074648,66991.0,66990.0,0.07688819]
[1729011840008,0.027,66993.0,66992.0,0.074646]
[1729011840517,0.074636,67002.0,67001.0,0.074636]
[1729011840700,0.074641,66997.0,66996.0,0.074641]
[1729011840902,0.088648,66991.0,66990.0,0.00223919]
[1729011841103,0.099648,66991.0,66990.0,0.00223919]
[1729011841411,0.074657,66983.0,66970.0,0.4904399]
[1729011841612,0.33467,66971.0,66970.0,0.0022399]
[1729011842731,0.33467,66971.0,66960.0,0.04370264]
[1729011842732,1.31096,66971.0,66960.0,0.04370264]
[1729011842914,0.074679,66964.0,66963.0,0.074678]
[1729011843315,0.26,66964.0,66958.0,0.11838664]
[1729011843521,0.26,66968.0,66967.0,0.074674]
[1729011845423,0.003,66968.0,66967.0,0.074674]
[1729011845929,0.26,66968.0,66967.0,0.074674]
[1729011846112,0.349673,66968.0,66967.0,0.002]
[1729011846419,1.397633,66968.0,66967.0,0.002]
[1729011846625,1.32296,66968.0,66953.0,0.04370264]
[1729011846813,0.26,66956.0,66955.0,0.074688]
[1729011847210,0.26,66956.0,66955.0,0.435488]
[1729011847424,0.26,66956.0,66955.0,0.11839064]
[1729011847822,0.26,66956.0,66955.0,0.074688]
[1729011847823,0.334687,66956.0,66955.0,0.074688]
[1729011848023,0.695487,66956.0,66955.0,0.074688]
[1729011848223,0.074689,66954.0,66953.0,0.003]
[1729011848615,0.074693,66951.0,66950.0,0.074693]
[1729011848823,0.26,66954.0,66949.0,0.12063721]
[1729011849122,0.26,66954.0,66951.0,0.04370264]
[1729011849322,0.26,66954.0,66952.0,0.04370264]
[1729011849525,0.26,66954.0,66953.0,0.07469]
[1729011849526,0.20769297,66954.0,66953.0,0.07469]
[1729011850832,0.21969297,66954.0,66953.0,0.07569]
[1729011851324,0.30838197,66954.0,66953.0,0.07569]
[1729011851627,0.23369297,66954.0,66953.0,0.07569]
[1729011851819,0.21969297,66954.0,66953.0,0.07569]
[1729011852021,0.026,66954.0,66953.0,0.07669]
[1729011852327,0.026,66954.0,66953.0,0.23816127]
[1729011852527,0.026,66954.0,66953.0,0.1494545]
[1729011853030,0.026,66954.0,66953.0,0.07669]
[1729011853328,0.026,66954.0,66953.0,0.1494545]
[1729011854131,0.3608,66977.0,66953.0,1.64766672]
[1729011854332,0.3608,66977.0,66976.0,0.074664]
[1729011854527,0.36304015,66985.0,66976.0,0.074664]
[1729011854528,0.00224015,66985.0,66984.0,0.074655]
[1729011854835,0.07689415,66985.0,66984.0,0.074655]
[1729011855030,0.074658,66982.0,66981.0,0.04401907]
[1729011855227,0.26,66981.0,66980.0,0.11867907]
[1729011855427,0.26,66981.0,66980.0,0.07466]
[1729011855834,0.26,66981.0,66980.0,0.11867907]
[1729011856124,0.26,66981.0,66980.0,0.07466]
[1729011856332,0.26,66981.0,66977.0,0.05875084]
[1729011856333,0.074661,66979.0,66978.0,0.05875084]
[1729011856528,0.8808,66981.0,66976.0,0.05875084]
[1729011856728,0.6208,66977.0,66975.0,0.04406014]
[1729011856930,0.334663,66977.0,66976.0,0.04406249]
[1729011857130,0.26,66977.0,66975.0,0.04406249]
[1729011857331,0.26,66977.0,66970.0,0.00223987]
[1729011857332,0.334665,66976.0,66974.0,0.13341684]
[1729011857533,0.074665,66975.0,66974.0,0.074666]
[1729011857932,0.334664,66976.0,66975.0,0.074665]
[1729011858431,0.334664,66976.0,66975.0,0.13341584]
[1729011858632,0.334664,66976.0,66975.0,0.074665]
[1729011859131,0.334664,66976.0,66975.0,0.13172653]
[1729011859336,0.334664,66976.0,66975.0,0.05706153]
[1729011859532,0.934664,66976.0,66974.0,0.014]
[1729011859831,0.571265,66975.0,66974.0,0.014]
[1729011860032,0.001,66976.0,66975.0,0.074665]
[1729011860229,0.001,66976.0,66975.0,0.13341584]
[1729011860427,0.001,66976.0,66975.0,0.074665]
[1729011860630,0.266,66976.0,66975.0,0.075665]
[1729011861028,0.006,66976.0,66975.0,0.075665]
[1729011861329,0.005,66976.0,66975.0,0.075665]
[1729011861525,0.019,66976.0,66975.0,0.075665]
[1729011861719,0.279,66976.0,66975.0,0.075665]
[1729011862023,0.953664,66976.0,66975.0,0.04511397]
[1729011862223,0.714464,66976.0,66970.0,0.00223987]
[1729011862526,0.6208,66971.0,66967.0,0.05880905]
[1729011862727,0.26,66968.0,66966.0,0.05880905]
[1729011862928,0.334674,66967.0,66966.0,0.13352631]
[1729011863231,0.334674,66967.0,66966.0,0.05885131]
[1729011863422,0.334674,66967.0,66955.0,0.28642849]
[1729011863423,0.074675,66966.0,66965.0,0.05885131]
[1729011863631,0.334675,66966.0,66965.0,0.05885131]
[1729011864329,0.334675,66966.0,66965.0,0.074677]
[1729011864829,0.26,66970.0,66964.0,0.07343856]
[1729011865026,0.26,66970.0,66962.0,0.3608]
[1729011865027,0.26,66970.0,66969.0,0.074672]
[1729011865231,0.334671,66970.0,66969.0,0.074672]
[1729011865527,0.334671,66970.0,66966.0,0.001]
[1729011865528,0.074674,66967.0,66966.0,0.001]
[1729011865924,0.3608,66968.0,66965.0,0.001]
[1729011865925,0.074675,66966.0,66965.0,0.001]
[1729011866128,0.334675,66966.0,66965.0,0.001]
[1729011866433,0.334675,66966.0,66965.0,0.16291462]
[1729011866736,0.074677,66965.0,66964.0,0.14911556]
[1729011866933,0.074677,66965.0,66964.0,0.23766748]
[1729011867136,0.074677,66965.0,66964.0,0.16422892]
[1729011867629,0.074677,66965.0,66964.0,0.16322892]
[1729011868636,0.075677,66965.0,66964.0,0.16429275]
[1729011868931,0.001,66965.0,66964.0,0.25163324]
[1729011869136,0.001,66965.0,66964.0,0.26962296]
[1729011869530,0.015,66965.0,66964.0,0.27062296]
[1729011870836,0.088677,66965.0,66964.0,0.16429275]
[1729011871140,0.089677,66965.0,66964.0,0.27104979]
[1729011871635,0.015,66965.0,66964.0,0.27104979]
[1729011872434,0.075677,66965.0,66964.0,0.27004979]
[1729011872737,0.089677,66965.0,66964.0,0.27104979]
[1729011873133,0.089677,66965.0,66964.0,0.2539765]
[1729011873338,0.088677,66965.0,66964.0,0.16429275]
[1729011873640,0.089677,66965.0,66964.0,0.16529275]
[1729011874134,0.088677,66965.0,66964.0,0.16429275]
[1729011874340,0.089677,66965.0,66964.0,0.17914721]
[1729011874543,0.074685,66957.0,66956.0,0.074686]
[1729011874733,0.074685,66957.0,66949.0,0.00224057]
[1729011874734,0.955485,66957.0,66949.0,0.00224057]
[1729011875036,0.3608,66951.0,66937.0,0.1164539]
[1729011875237,0.3608,66951.0,66936.0,0.00132]
[1729011875238,0.074708,66937.0,66936.0,0.00132]
[1729011875430,0.26,66938.0,66931.0,0.02208052]
[1729011875630,0.52,66932.0,66914.0,0.3608]
[1729011875836,0.3608,66925.0,66915.0,0.1192248]
[1729011876035,0.3608,66925.0,66924.0,0.074722]
[1729011876232,0.074711,66934.0,66914.0,0.38211778]
[1729011876528,0.3608,66935.0,66934.0,0.074711]
[1729011876728,0.1438,66937.0,66935.0,0.074709]
[1729011876929,0.1438,66937.0,66933.0,0.07377032]
[1729011876930,0.16494492,66937.0,66936.0,0.074709]
[1729011877139,0.23165292,66937.0,66936.0,0.0589617]
[1729011877327,0.15694492,66937.0,66936.0,0.0589617]
[1729011877529,0.41694492,66937.0,66935.0,0.0589617]
[1729011877731,0.074709,66936.0,66935.0,0.0589617]
[1729011877927,0.074709,66936.0,66934.0,0.001]
[1729011877928,0.02114492,66937.0,66936.0,0.074709]
[1729011878140,0.62156,66941.0,66938.0,0.074707]
[1729011878640,0.02213021,66940.0,66938.0,0.074707]
[1729011878847,0.62156,66941.0,66938.0,0.074707]
[1729011879136,0.62156,66941.0,66938.0,0.13361513]
[1729011879340,0.62156,66941.0,66938.0,0.074707]
[1729011879843,0.01624201,66939.0,66938.0,0.074707]
[1729011880040,0.03024201,66939.0,66938.0,0.075707]
[1729011880453,0.01624201,66939.0,66938.0,0.075707]
[1729011880640,0.03024201,66939.0,66938.0,0.075707]
[1729011880942,0.02924201,66939.0,66938.0,0.075707]
[1729011881536,0.014,66939.0,66938.0,0.074707]
[1729011881742,0.100706,66939.0,66938.0,0.074707]
[1729011883142,0.088706,66939.0,66938.0,0.074707]
[1729011883348,0.102706,66939.0,66938.0,0.075707]
[1729011883842,0.102706,66939.0,66931.0,0.15124221]
[1729011883843,0.074718,66928.0,66927.0,0.07377032]
[1729011884048,0.074722,66924.0,66923.0,0.074723]
[1729011884252,0.074722,66924.0,66919.0,0.074727]
[1729011884253,0.074725,66922.0,66919.0,0.074727]
[1729011884638,0.074725,66922.0,66916.0,0.07473]
[1729011885045,0.074735,66913.0,66912.0,0.074735]
[1729011885246,0.6208,66913.0,66907.0,0.07474]
[1729011885450,0.6208,66916.0,66915.0,0.074732]
[1729011886944,0.706531,66916.0,66915.0,0.074732]
[1729011887249,0.712531,66916.0,66915.0,0.075732]
[1729011887942,0.6378,66916.0,66915.0,0.075732]
[1729011889041,0.712531,66916.0,66915.0,0.075732]
[1729011889354,0.3778,66916.0,66915.0,0.075732]
[1729011889951,0.6378,66916.0,66915.0,0.075732]
[1729011890144,0.3778,66916.0,66915.0,0.075732]
[1729011890848,0.6378,66916.0,66915.0,0.075732]
[1729011891242,0.6378,66916.0,66915.0,0.001]
[1729011891442,0.712531,66916.0,66915.0,0.001]
[1729011892256,1.5986,66916.0,66899.0,0.07377032]
[1729011892548,1.5986,66916.0,66903.0,0.074745]
[1729011892549,0.6208,66904.0,66903.0,0.074745]
[1729011893142,0.26,66904.0,66903.0,0.074745]
[1729011893647,0.334745,66904.0,66903.0,0.074745]
[1729011894245,0.335745,66904.0,66903.0,0.080745]
[1729011894951,0.261,66904.0,66903.0,0.080745]
[1729011895247,0.001,66904.0,66903.0,0.080745]
[1729011895845,0.075745,66904.0,66903.0,0.080745]
[1729011896346,0.074745,66904.0,66903.0,0.074745]
[1729011896548,0.074745,66904.0,66903.0,0.075745]
[1729011896942,0.078745,66904.0,66903.0,0.075745]
[1729011897344,0.079745,66904.0,66903.0,0.074745]
[1729011897650,0.093745,66904.0,66903.0,0.074745]
[1729011898251,0.07475,66900.0,66899.0,0.074749]
[1729011898456,0.33475,66900.0,66899.0,0.074749]
[1729011899446,0.3608,66902.0,66901.0,0.074748]
[1729011899754,0.348745,66904.0,66898.0,0.00224198]
[1729011899957,0.348745,66904.0,66903.0,0.074746]
[1729011900142,0.334745,66904.0,66903.0,0.074746]
[1729011900546,0.074749,66901.0,66900.0,0.074749]
[1729011900750,0.695549,66901.0,66900.0,0.074749]
[1729011901152,0.6208,66901.0,66898.0,0.00224198]
[1729011901346,0.07475,66899.0,66898.0,0.07699298]
[1729011901546,0.07475,66899.0,66898.0,0.074751]
[1729011902449,0.62156,66901.0,66894.0,0.07377032]
[1729011902642,0.62156,66901.0,66900.0,0.334749]
[1729011902643,0.00076,66901.0,66900.0,0.334749]
[1729011902856,0.3608,66909.0,66900.0,0.334749]
[1729011902857,0.26,66923.0,66900.0,0.94685244]
[1729011903155,0.3608,66925.0,66900.0,0.94685244]
[1729011903156,0.3608,66925.0,66917.0,0.26]
[1729011903355,0.26,66931.0,66918.0,0.1284]
[1729011903356,0.36156,66928.0,66918.0,0.1284]
[1729011903551,0.26,66926.0,66918.0,0.20201273]
[1729011903741,0.00076,66928.0,66921.0,0.074724]
[1729011903742,0.334725,66922.0,66921.0,0.074724]
[1729011903946,0.074728,66919.0,66918.0,0.074729]
[1729011904149,0.074728,66919.0,66916.0,0.14834373]
[1729011904150,0.07473,66917.0,66916.0,0.14834373]
[1729011904349,0.3608,66919.0,66917.0,0.07473]
[1729011904350,0.26,66918.0,66917.0,0.07473]
[1729011904549,0.076725,66922.0,66917.0,0.07473]
[1729011904550,0.262,66922.0,66917.0,0.08622671]
[1729011904751,0.002,66922.0,66921.0,0.14841044]
[1729011904963,0.002,66922.0,66921.0,0.16077964]
[1729011905156,0.076725,66922.0,66920.0,0.073682]
[1729011905356,0.074729,66918.0,66917.0,0.148412]
[1729011905659,0.334729,66918.0,66917.0,0.07473]
[1729011905852,0.3608,66920.0,66918.0,0.074729]
[1729011906049,0.3608,66920.0,66919.0,0.23452931]
[1729011906250,0.3608,66920.0,66919.0,0.16084731]
[1729011906454,0.435527,66920.0,66919.0,0.08611931]
[1729011906756,0.3608,66920.0,66919.0,0.074728]
[1729011907059,0.26,66928.0,66927.0,0.074719]
[1729011907246,0.38208615,66929.0,66928.0,0.074718]
[1729011907448,0.435507,66938.0,66935.0,0.07471]
[1729011907648,0.07695099,66936.0,66935.0,0.07471]
[1729011907844,0.00224199,66936.0,66935.0,0.07471]
[1729011908051,0.09858904,66936.0,66935.0,0.07471]
[1729011908257,0.074712,66933.0,66932.0,0.07372649]
[1729011908453,0.074712,66933.0,66932.0,0.074713]
[1729011908454,0.26,66933.0,66932.0,0.074713]
[1729011908760,0.334712,66933.0,66932.0,0.074713]
[1729011909147,0.26,66933.0,66932.0,0.074713]
[1729011909353,0.074714,66932.0,66931.0,0.074713]
[1729011909661,0.008,66929.0,66928.0,0.07472649]
[1729011909959,0.342717,66929.0,66928.0,0.075718]
[1729011910463,0.3688,66932.0,66931.0,0.075715]
[1729011911157,0.3608,66932.0,66931.0,0.16024126]
[1729011911550,0.274,66933.0,66931.0,0.08552626]
[1729011911846,0.014,66933.0,66932.0,0.16023926]
[1729011912056,0.014,66933.0,66932.0,0.23387507]
[1729011912057,0.709512,66933.0,66932.0,0.23387507]
[1729011912251,0.26,66933.0,66932.0,0.16023926]
[1729011912462,0.26,66933.0,66932.0,0.23384874]
[1729011912758,0.26,66933.0,66932.0,0.14835255]